Cogmind - Beta 16 @@@ ROGUE MODE // 2025.11.14 @ 05:22:22 Player: Cereal Killer Result: Destroyed by D-53 Grenadier with Mini Grenade Launcher Performance ------------- Evolutions (0) 0 Regions Visited (4) 800 Robots Destroyed (21) 105 Value Destroyed (504) 504 Prototype IDs (3) 60 Alien Tech Used (0) 0 Bonus (0) 0 TOTAL SCORE: 1469 Bonus ------- None Cogmind --------- Core Integrity 0/250 Matter 228/300 Energy 82/100 System Corruption 0% Temperature Cool (0) Movement Core (50) Location -9/Mines Parts ------- > --- POWER (1) -------- (None) > --- PROPULSION (2) --- (None) > --- UTILITY (2) ------ (None) > --- WEAPON (2) ------- (None) > --- INVENTORY (5) ---- Compact Wheel YI-UF0's Bottomless Matter Pit (1500) Structural Scanner Improved Light Cannon Improved Light Cannon Peak State ------------ > --- POWER ------------ Ion Engine > --- PROPULSION ------- Improved Aluminum Leg Improved Aluminum Leg > --- UTILITY ---------- Small Storage Unit YI-UF0's Bottomless Matter Pit > --- WEAPON ----------- Improved Light Cannon Battle Cannon > --- INVENTORY -------- Improved Aluminum Leg Improved Aluminum Leg Compact Wheel Hardened Light Armor Plating Hardened Light Armor Plating Hardened Light Armor Plating Improved Light Cannon Improved Light Cannon [Rating: 20] Favorites ----------- Power Ion Engine Engine Ion Engine Propulsion Improved Aluminum Leg Leg Improved Aluminum Leg Utility Small Storage Unit Storage Small Storage Unit Protection Hardened Light Armor Plating Weapon Improved Light Cannon Ballistic Gun Shotgun Ballistic Cannon Improved Light Cannon Build | -11 -10 -10 -10 -9 ------- Run | Yrd Mat Min Exi Min Slots Evolved . | . . . . . Power . | . . . . . Propulsion . | . . . . . Utility . | . . . . . Weapon . | . . . . . Parts Attached 18 | 6 7 3 . 2 Power 2 | 1 . 1 . . Engine 2 | 1 . 1 . . Core . | . . . . . Reactor . | . . . . . Propulsion 5 | 2 2 . . 1 Treads . | . . . . . Leg 5 | 2 2 . . 1 Wheel . | . . . . . Hover . | . . . . . Flight . | . . . . . Utility 4 | 1 1 1 . 1 Device . | . . . . . Storage 2 | 1 . 1 . . Processor . | . . . . . Hackware . | . . . . . Protection 2 | . 1 . . 1 Artifact . | . . . . . Weapon 7 | 2 4 1 . . Energy Gun . | . . . . . Energy Cannon . | . . . . . Ballistic Gun 4 | 2 2 . . . Ballistic Cannon 3 | . 2 1 . . Launcher . | . . . . . Special Weapon . | . . . . . Impact Weapon . | . . . . . Slashing Weapon . | . . . . . Piercing Weapon . | . . . . . Special Melee Weapon . | . . . . . Unidentified Prototypes 1 | . . 1 . . Parts Lost 8 | . . 1 . 7 Power 2 | . . 1 . 1 Propulsion 3 | . . . . 3 Utility 1 | . . . . 1 Weapon 2 | . . . . 2 Highest Loss Streak 6 | . . 1 . 6 To Critical Strikes . | . . . . . Average Backups 7 | 4 7 7 8 7 Power . | . 1 . . . Propulsion 3 | 3 4 3 3 2 Utility 2 | . 1 2 3 3 Weapon 1 | . 1 2 2 2 Tool/Special . | . . . . . Unused Backups 13 | . 8 . . 5 Power . | . . . . . Propulsion 6 | . 4 . . 2 Utility 3 | . 2 . . 1 Weapon 4 | . 2 . . 2 Tool/Special . | . . . . . Average Slot Usage (%) 96 | . 86 99 100 95 Engine 13 | . 14 13 14 13 Leg 27 | . 28 28 28 26 Storage 14 | . 14 14 14 14 Protection 11 | . 1 14 14 13 Ballistic Gun 5 | . 24 . . . Ballistic Cannon 22 | . 4 28 28 26 Peak Build Rating 20 | 6 13 20 14 14 Average Rating 12 | 4 10 13 14 13 On Entrance 9 | . 6 13 14 14 Avg Prop Armor Cover (%) . | . . . . . Naked Turns 2 | . . . . 2 Heaviest Build 22 | 11 21 22 22 22 Greatest Support 26 | 20 26 26 26 26 Greatest Overweight (x) . | . . . . . Average Overweight (x) . | . . . . . Largest Inventory Capacity 8 | 8 8 8 8 8 Average Capacity 7 | 7 8 8 8 7 Most Carried 8 | 8 8 8 8 8 Average Carried 7 | 5 7 7 8 7 Final Capacity 8 | 8 8 8 8 5 Final Carried 8 | 8 8 8 8 5 Class Distribution -------------------- 100% | Mutant Dominant Class ---------------- Mutant | -10/Materials Mutant | -10/Mines Mutant | -10/Exiles Mutant | -9/Mines Resources | -11 -10 -10 -10 -9 ----------- Run | Yrd Mat Min Exi Min Matter Collected 1101 | 276 96 324 306 99 Remotely . | . . . . . Salvage Created 550 | 95 263 119 . 73 Parts 34 | 2 15 13 . 4 Haulers Intercepted 1 | . 1 . . . Recyclers Shooed . | . . . . . Parts Field Recycled . | . . . . . Retrieved Matter . | . . . . . Parts Self-Destructed . | . . . . . Prevented . | . . . . . Parts Restored . | . . . . . Kills | -11 -10 -10 -10 -9 ------- Run | Yrd Mat Min Exi Min Combat Hostiles Destroyed 17 | . 6 8 . 3 Guns 4 | . 4 . . . Cannons 12 | . 1 8 . 3 AOE 1 | . 1 . . . Classes Destroyed 5 | 1 2 2 . . Worker 2 | . . 2 . . Hauler 1 | . 1 . . . Recycler 1 | 1 . . . . Swarmer 5 | . . 5 . . Grunt 11 | . 6 2 . 3 Best Kill Streak 4 | 1 4 3 . 2 Combat Bots Only 4 | . 4 3 . 2 Max Kills in Single Turn 1 | 1 1 1 . 1 Gunslinging . | . . . . . Exploded 1 | . 1 . . . Melee . | . . . . . Uniques/NPCs Destroyed 1 | . . 1 . . YI-UF0 (-10/Mines) Combat | -11 -10 -10 -10 -9 -------- Run | Yrd Mat Min Exi Min Hostile Shots Fired 111 | . 21 46 . 44 Missed 27 | . 7 10 . 10 Hits 84 | . 14 36 . 34 Projectile 84 | . 14 36 . 34 AOE 17 | . . 2 . 15 Critical Strikes 2 | . . 1 . 1 Damage Taken 1377 | . 164 381 . 832 Core 272 | . 45 13 . 214 Absorbed by Shields . | . . . . . Core Remaining (%) 100 | 100 . . . . Volleys Fired 66 | 4 16 24 . 22 Largest 2 | 2 2 2 . 2 Hottest 66 | 40 66 66 . 66 Shots Fired 129 | 8 32 48 . 41 Gun 38 | 8 30 . . . Cannon 91 | . 2 48 . 41 Launcher . | . . . . . Special . | . . . . . Kinetic 129 | 8 32 48 . 41 Thermal . | . . . . . Explosive . | . . . . . Electromagnetic . | . . . . . Robot Hit Streak 6 | 3 6 4 . 4 Robot Miss Streak 8 | 1 8 5 . 4 Penetration Max . | . . . . . Secondary Targets . | . . . . . Shots Hit Robots 66 | 6 22 20 . 18 Core Hits 32 | 2 13 12 . 5 Critical Kills . | . . . . . Critical Parts Destroyed . | . . . . . Critical Strikes 3 | . . 2 . 1 Blast 3 | . . 2 . 1 Melee Attacks . | . . . . . Impact . | . . . . . Slashing . | . . . . . Piercing . | . . . . . Sneak Attacks . | . . . . . Combat Hostiles . | . . . . . Follow-up Attacks . | . . . . . Damage Inflicted 1357 | 73 429 470 . 385 Guns 366 | 73 293 . . . Cannons 859 | . 23 451 . 385 Explosions 113 | . 113 . . . Melee . | . . . . . Ramming 19 | . . 19 . . Kinetic 1225 | 73 316 451 . 385 Thermal 113 | . 113 . . . Explosive . | . . . . . Electromagnetic . | . . . . . Impact . | . . . . . Slashing . | . . . . . Piercing . | . . . . . Highest Corruption . | . . . . . Average Corruption . | . . . . . Corruption Purged . | . . . . . Corruption Blocked . | . . . . . Overload Shots . | . . . . . Overflow Damage 71 | . 43 6 . 22 Projectiles 28 | . . 6 . 22 Explosions 43 | . 43 . . . Melee . | . . . . . Knockbacks 5 | . . 2 . 3 Impact . | . . . . . Kinetic 5 | . . 2 . 3 Secondary . | . . . . . Self-Inflicted Damage . | . . . . . Shots . | . . . . . Rammed . | . . . . . Targets Rammed 6 | . . 6 . . Kicked 6 | . . 6 . . Crushed . | . . . . . Highest Temperature 219 | . 6 219 . 219 Average Temperature 81 | . 1 83 . 92 Received Heat Transfer 279 | . 87 72 . 120 Siege Activations . | . . . . . Martial Activations . | . . . . . Shielding Activations . | . . . . . Robots Disrupted . | . . . . . Combat Hostiles . | . . . . . Robots Corrupted . | . . . . . Combat Hostiles . | . . . . . Parts Fried . | . . . . . Impact Corruptions . | . . . . . Robots Melted . | . . . . . Combat Hostiles . | . . . . . Parts Melted . | . . . . . Heat Transferred 50 | . 50 . . . Parts Sabotaged . | . . . . . Parts Stolen . | . . . . . Parts Stripped . | . . . . . Power Chain Reactions . | . . . . . Alert | -11 -10 -10 -10 -9 ------- Run | Yrd Mat Min Exi Min Maximum Alert Level 1 | . 1 . . . Low Security (%) 99 | 100 98 100 . 100 Level 1 . | . 1 . . . Level 2 . | . . . . . Level 3 . | . . . . . Level 4 . | . . . . . Level 5 . | . . . . . High Security . | . . . . . Max Security . | . . . . . Peak Influence 202 | 5 202 127 . 71 Initial 72 | . . 72 . . Average 41 | . 49 47 . 28 Influence Increases 574 | 5 284 183 . 102 Destroy 0b10 Robot/C 320 | . 120 140 . 60 Destroy 0b10 Robot/NC 20 | 5 5 10 . . Destroy Leader 82 | . 42 30 . 10 Successful Hack 27 | . 27 . . . Disable Machine 45 | . 45 . . . Destroy Structure 35 | . 30 3 . 2 Lose Combat Pursuer 45 | . 15 . . 30 Influence Decreases 574 | 5 97 370 . 102 Entered New Map 115 | . . 115 . . Time Decay 418 | 5 97 245 . 71 Lost Part 41 | . . 10 . 31 Squads Dispatched 7 | . 7 . . . Investigation 6 | . 6 . . . Extermination . | . . . . . Reinforcement 1 | . 1 . . . Assault . | . . . . . Garrison . | . . . . . Intercept . | . . . . . Searches Triggered . | . . . . . Construction Impeded . | . . . . . Haulers Reinforced . | . . . . . Active Scanning Responses . | . . . . . Cargo Convoy Interrupts . | . . . . . Stealth | -11 -10 -10 -10 -9 --------- Run | Yrd Mat Min Exi Min Distress Signals 3 | . 3 . . . Communications Jammed . | . . . . . Distress Signals . | . . . . . Times Spotted 25 | . 6 9 . 10 Peak Tracking Total 3 | . 2 3 . 3 Tactical Retreats 2 | . 1 . . 1 Traps | -11 -10 -10 -10 -9 ------- Run | Yrd Mat Min Exi Min Traps Triggered 1 | . 1 . . . Indirectly . | . . . . . Trap Hack Attempts . | . . . . . Triggered . | . . . . . Disarmed . | . . . . . Reprogrammed . | . . . . . Reused . | . . . . . Traps Extracted . | . . . . . Installed . | . . . . . Triggered . | . . . . . Objects Rigged 2 | . 2 . . . Exploded 2 | . 2 . . . Machines | -11 -10 -10 -10 -9 ---------- Run | Yrd Mat Min Exi Min Machines Disabled 3 | . 3 . . . Max in Single Turn 3 | . 3 . . . Machines Repaired . | . . . . . Machines Dismantled . | . . . . . Machines Sabotaged . | . . . . . Overloaded Fab Kills . | . . . . . Hacking | -11 -10 -10 -10 -9 --------- Run | Yrd Mat Min Exi Min Machines Accessed 6 | . 5 . 1 . Terminals 5 | . 5 . . . Fabricators . | . . . . . Repair Stations . | . . . . . Recycling Units . | . . . . . Scanalyzers . | . . . . . Garrison Access . | . . . . . Total Hacks 11 | . 10 . 1 . Successful 9 | . 8 . 1 . Failed 2 | . 2 . . . Catastrophic . | . . . . . Database Lockouts . | . . . . . Manual 8 | . 8 . . . Terminals 10 | . 10 . . . Fabricators . | . . . . . Repair Stations . | . . . . . Recycling Units . | . . . . . Scanalyzers . | . . . . . Garrison Access . | . . . . . Terminal Hacks 3 | . 2 . 1 . Record 1 | . . . 1 . Robot Analysis 1 | . 1 . . . Prototype ID Bank 1 | . 1 . . . Fabricator Hacks . | . . . . . Repair Station Hacks . | . . . . . Recycling Unit Hacks . | . . . . . Scanalyzer . | . . . . . Garrison Access Hacks . | . . . . . Unauthorized Hacks 6 | . 6 . . . Terminals 6 | . 6 . . . Detonate 1 | . 1 . . . Sabotage 4 | . 4 . . . Search 1 | . 1 . . . Fabricators . | . . . . . Repair Stations . | . . . . . Recycling Units . | . . . . . Scanalyzers . | . . . . . Garrison Access . | . . . . . Data Cores Recovered . | . . . . . Used . | . . . . . Hacking Detections 3 | . 3 . . . Full Trace Events . | . . . . . Feedback Events . | . . . . . Feedback Blocked . | . . . . . Robot Schematics Acquired . | . . . . . Robots Built . | . . . . . Authchips . | . . . . . Time . | . . . . . Total Robot Build Rating . | . . . . . Part Schematics Acquired . | . . . . . Parts Built . | . . . . . Authchips . | . . . . . Time . | . . . . . Total Part Build Rating . | . . . . . Part Studies Acquired . | . . . . . Parts Repaired . | . . . . . Time . | . . . . . Parts Recycled . | . . . . . Recycled Matter . | . . . . . Retrieved Matter . | . . . . . Retrieved Components . | . . . . . Parts Scanalyzed . | . . . . . Part Schematics Acquired . | . . . . . Parts Damaged . | . . . . . Bothacking | -11 -10 -10 -10 -9 ------------ Run | Yrd Mat Min Exi Min Used RIF Installer . | . . . . . Robots Hacked . | . . . . . Non-combat . | . . . . . Combat . | . . . . . Robot Hacks Applied . | . . . . . Relay Couplers Released . | . . . . . Fabnet Peak Effective % . | . . . . . Robots Rewired . | . . . . . Allies Hacked . | . . . . . Hacks Repelled . | . . . . . Allies | -11 -10 -10 -10 -9 -------- Run | Yrd Mat Min Exi Min Total Allies . | . . . . . Largest Group . | . . . . . Highest-Rated Group . | . . . . . Highest-Rated Ally . | . . . . . Total Orders . | . . . . . Ally Attacks . | . . . . . Total Damage . | . . . . . Kills . | . . . . . Allies Corrupted . | . . . . . Allies Melted . | . . . . . Intel | -11 -10 -10 -10 -9 ------- Run | Yrd Mat Min Exi Min Active Infowar (turns) . | . . . . . Robot Analysis Total 1 | . 1 . . . Derelict Logs Recovered 3 | . . 3 . . Drone Launches . | . . . . . Drone Recoveries . | . . . . . Exploration | -11 -10 -10 -10 -9 ------------- Run | Yrd Mat Min Exi Min Turns Passed 1662 | 83 337 716 311 215 Spaces Moved 1162 | 51 216 523 260 112 Core 15 | 12 . . . 3 Treads . | . . . . . Legs 1147 | 39 216 523 260 109 Wheels . | . . . . . Hover . | . . . . . Flight . | . . . . . Fastest Speed 50 | 50 120 120 120 50 Average Speed 119 | 103 120 120 120 118 Slowest Speed 120 | 120 120 120 120 120 Overloaded Moves . | . . . . . Propulsion Burnouts . | . . . . . Robots Hopped . | . . . . . Potential Cave-ins . | . . . . . Cave-ins Triggered . | . . . . . Exploration Rate (%) 47 | 4 49 89 57 40 Regions Visited 4 Branch Regions 3 Pre-discovered Areas 1 | . . . 1 . Known Exits Taken . | . . . . . Unknown Exits Taken 4 | 1 1 1 1 . Scrap Searched 2 | . . 1 . 1 Spaces Dug . | . . . . . Terrain Destroyed 43 | . 38 3 . 2 Melee . | . . . . . Projectile 5 | . . 3 . 2 AOE 38 | . 38 . . . Terrain Rammed . | . . . . . Walls Destroyed . | . . . . . Machines Disabled . | . . . . . Actions | -11 -10 -10 -10 -9 --------- Run | Yrd Mat Min Exi Min Total 1320 | 76 268 562 259 155 Wait 25 | . 7 4 . 14 Move 1158 | 50 215 522 259 112 Hop . | . . . . . Pick Up 25 | 15 8 1 . 1 Fast Attach 4 | . 4 . . . Attach 9 | 6 . 1 . 2 Detach . | . . . . . Swap 7 | . 4 3 . . Drop 20 | 1 14 1 . 4 Fire 66 | 4 16 24 . 22 Melee . | . . . . . Ram . | . . . . . Kick 6 | . . 6 . . Crush . | . . . . . Escape Stasis . | . . . . . Rewire . | . . . . . Trap . | . . . . . Miscellaneous . | . . . . . Route ------- -11/Scrapyard -10/Materials (discovered 2 exits: [*Mat] / [*Min]) -10/Mines (discovered 3 exits: [*Mat x2] / *Exi) -10/Exiles -9/Mines History --------- Turn | Location | Event 25 | -11/Scrapyard | Discovered new exit (range 15) 84 | -11/Scrapyard | Entered Materials 85 | -10/Materials | Met a group of wandering Federalists 186 | -10/Materials | Discovered new exit (range 16) 267 | -10/Materials | Discovered new exit (range 8) 314 | -10/Materials | Build established: Mutant 421 | -10/Materials | Entered Mines 427 | -10/Mines | Learned Materials emergency access door positions 443 | -10/Mines | Discovered new exit (range 9) 673 | -10/Mines | A weapon hastily lodged in a ceiling crevice suddenly fell to the ground 714 | -10/Mines | Learned Materials terminal intel 791 | -10/Mines | Destroyed YI-UF0 805 | -10/Mines | Discovered new exit (range 16) 806 | -10/Mines | Found Prototype Storage 807 | -10/Mines | Identified YI-UF0's Bottomless Matter Pit 1081 | -10/Mines | Found a hidden stash of uninstalled traps 1131 | -10/Mines | Deemed a non-threat by the Exiles lab entrance 1132 | -10/Mines | Discovered new exit (range 5) 1137 | -10/Mines | Entered Exiles 1166 | -10/Exiles | Met 8R-AWN 1187 | -10/Exiles | Met EX-HEX 1233 | -10/Exiles | Met EX-DEC 1239 | -10/Exiles | Learned location of Zion (-7) 1266 | -10/Exiles | Met EX-BIN 1395 | -10/Exiles | Discovered new exit (range 10) 1448 | -10/Exiles | Entered Mines 1570 | -9/Mines | Assembled infested the area 1653 | -9/Mines | Core integrity fell below 50% 1663 | -9/Mines | Core integrity fell below 20% 1663 | -9/Mines | Destroyed by D-53 Grenadier with Mini Grenade Launcher Last Messages --------------- 01613_ as-67548 destroyed. 01615_ T-07 Excavator is excavating. 01647_ Acquired Structural Scanner. 01649_ T-07 Excavator destroyed. 01649_ Hrd. Light Armor Plating destroyed. 01651_ The unstable cave ceiling collapses. 01651_ Imp. Light Cannon destroyed. 01652_ The unstable cave ceiling collapses. 01652_ Imp. Aluminum Leg destroyed. 01653_ T-07 Excavator destroyed. 01654_ Destroyed Shock Absorption System. 01655_ The unstable cave ceiling collapses. 01657_ Battle Cannon destroyed. 01658_ The unstable cave ceiling collapses. 01658_ Ion Engine destroyed. 01659_ Imp. Aluminum Leg destroyed. 01659_ Dropped Hrd. Light Armor Plating. 01660_ Dropped Imp. Aluminum Leg. 01660_ Dropped Sml. Storage Unit. 01661_ Dropped Hrd. Light Armor Plating. Map ----- +----------------------------------------------------+ | | | | | | | | | | | | | | | | | | | ?????????????????????????????????????????????????? | | ?????????????????????????????????????????????????? | | ????????????????#????????????????????????????????? | | ??????????????## #???????????????????????????????? | | ??????????????# ????????####?####??????????????? | | ??????????????# ???????# ## # # ????????????? | | ??????????????# #######? ?????????????? | | ?????????????## ## ## # ???????????? | | ?????????????# ## d ????????????? | | ?????????????# ## d % ??????????? | | ?????????????# ## % # ???????????? | | ?????????????# # # ??????????? | | ?????????????# ??????????? | | ?????????????## ! ???????????? | | ??????????????# !! # #??????????????? | | ??????????????## = ##??????????????? | | ???????????????### @ ##?????????????? | | ?????????????????## ## ##????????????? | | ??????????????????## #### ##???????????? | | ???????????????????#########??## #???????????? | | ???????????????????????????????# #???????????? | | ????????? ???#????????????????## #???????? ?? | | ????????? ## ?????####???### #?????? ?? | | ???????? ???## ##?## ##???? | | ???????? ### ### ##??? #? | | ????????? #### #?? | | ?????????????# % #??? | | ??????????????# #??? | | ??????????????## ####### #??? | | ???????????????#### ##???????? ##### | | ??????????????????## ##???###??????#?# ! | | ???????????????????## #??## ##???????#% | | ????????????????????## ##?## #???????#!# | | ?????????????????????#### #### #???????# # | | ????????????????????????## ## #????????# # | | ?????????????????????????### #??????????# # | | ???????????????????????????## #??????????# # | | ????????????????????????????# %%##?????????# # | | ??????????????????????????### ############ # | | ???????????????????" # | | ???????????????????# ######## ###### | +----------------------------------------------------+ Best States ------------- Heat Dissipation 25 Energy Generation 10 Energy Capacity 250 Matter Stores 300 Matter Capacity 300 Sight Range 16 Terrain Scan Density 10 Armor Coverage 150 Evasion (%) 55 Item Schematics ----------------- None Robot Schematics ------------------ None Fabricated ------------ Nothing Repaired ---------- Nothing Studied --------- None Alien Tech Used ----------------- None Achievements -------------- None Challenges ------------ None Game ------ Seed ScatterPoweredRifle Manual? 0 Play Time 00:17:49 Cumulative 326.1 hours Start 2025.11.14 @ 04:38:40 End 2025.11.14 @ 05:22:22 Sessions 1 Manual Loads 0 Difficulty Rogue Special Mode None Game No. 247 Rogue 238 Adventurer 9 Explorer 0 Win Type - Total 4 Types 3/0/0/1/0/0/0/0/0/0 Lore% 87 Gallery% 75 Achievement% 50 Wizard Run 0 Options --------- Layout 1 ASCII 0 Keyboard 0 Movement Numpad Keybinds 0 Fullscreen 1 Font 24/Smallcaps Map View 50x35 Zoom Use 0% Tactical HUD 1 Map Filters NONE Filters NONE Steam 1 RUN: 67211eb9-8586-4edd-b45f-39495c402753